bitfinex/quotes_SOLUSD_20250604
["timestamp","ask_amount","ask_price","bid_price","bid_amount"]
[1749062174799,147.93102732,156.18,156.17,38.94]
[1749062175186,0.28432314,156.17,156.16,10.02]
[1749062175397,0.28432314,156.17,156.16,48.94]
[1749062177499,148.07318889,156.18,156.16,59.01063076]
[1749062177500,147.93102732,156.18,156.16,59.01063076]
[1749062182905,0.28432314,156.19,156.16,59.01063076]
[1749062185214,10.3549539,156.18,156.16,10.02]
[1749062185398,10.3549539,156.18,156.16,48.94]
[1749062186605,10.3549539,156.17,156.16,10.02]
[1749062186798,10.63927704,156.17,156.16,10.02]
[1749062188118,0.56864628,156.17,156.16,10.02]
[1749062188700,10.63927704,156.17,156.16,10.02]
[1749062189825,0.56864628,156.17,156.16,10.02]
[1749062190718,10.63927704,156.17,156.16,10.02]
[1749062191424,10.3549539,156.17,156.16,10.02]
[1749062191727,0.14216157,156.17,156.16,10.02]
[1749062192098,0.28432314,156.17,156.16,10.02]
[1749062192803,147.93102732,156.18,156.16,10.02]
[1749062193306,148.21535046,156.18,156.17,38.92]
[1749062198124,10.63927704,156.17,156.12,10.0]
[1749062198330,10.3549539,156.13,156.12,48.92]
[1749062198906,0.28432314,156.13,156.12,48.92]
[1749062199127,0.28432314,156.15,156.12,58.99063076]
[1749062200913,0.28432314,156.16,156.13,10.07063076]
[1749062201121,0.28432314,156.16,156.14,38.92]
[1749062202659,10.3549539,156.16,156.14,38.92]
[1749062215562,0.28432314,156.16,156.14,38.92]
[1749062223545,10.3549539,156.16,156.14,38.92]
[1749062223747,0.42648471,156.14,156.12,10.0]
[1749062223956,10.3549539,156.13,156.12,10.0]
[1749062224759,0.28432314,156.13,156.12,10.0]
[1749062225559,10.07063076,156.16,156.12,10.0]
[1749062225758,0.28432314,156.15,156.12,20.07063076]
[1749062226063,158.00165808,156.18,156.14,10.07063076]
[1749062226257,10.07063076,156.19,156.15,48.97063076]
[1749062226459,0.28432314,156.18,156.15,48.97063076]
[1749062226657,0.28432314,156.18,156.15,38.9]
[1749062228682,0.28432314,156.18,156.15,48.97063076]
[1749062231784,10.3549539,156.18,156.15,38.9]
[1749062232785,10.49711547,156.16,156.11,10.07063076]
[1749062232978,10.49711547,156.16,156.12,10.0]
[1749062232979,10.3549539,156.14,156.12,10.0]
[1749062233151,10.3549539,156.14,156.12,48.9]
[1749062235175,15.73498189,156.14,156.12,48.9]
[1749062235693,15.73498189,156.14,156.12,10.0]
[1749062235862,15.73498189,156.14,156.12,48.9]
[1749062236769,15.73498189,156.14,156.12,10.0]
[1749062237085,16.01930503,156.14,156.13,38.9]
[1749062239765,16.01930503,156.14,156.12,10.0]
[1749062239965,16.01930503,156.14,156.12,48.9]
[1749062240576,0.28432314,156.14,156.12,48.9]
[1749062240970,15.73498189,156.15,156.12,48.9]
[1749062241691,0.42648471,156.16,156.12,64.63498189]
[1749062241863,16.1614666,156.16,156.12,48.9]
[1749062246882,0.14216157,156.12,156.06,4.57723415]
[1749062247191,0.42648471,156.06,156.05,36.84]
[1749062247401,0.28432314,156.05,156.04,48.9]
[1749062248191,0.28432314,156.05,156.04,10.0]
[1749062248192,16.01930503,156.05,156.04,10.0]
[1749062248391,16.01930503,156.05,156.04,48.9]
[1749062249178,16.1614666,156.05,156.04,48.9]
[1749062249474,16.30362817,156.05,156.04,10.0]
[1749062249681,0.28432314,156.04,156.02,38.9]
[1749062249876,16.1614666,156.03,156.02,38.9]
[1749062250275,0.28432314,156.02,156.01,38.9]
[1749062250576,0.28432314,156.02,156.0,10.0]
[1749062250781,16.01930503,156.02,156.01,38.9]
[1749062253584,16.01930503,156.02,156.0,10.0]
[1749062253891,16.01930503,156.02,156.01,38.92]
[1749062254096,0.28432314,156.02,156.01,38.92]
[1749062254400,16.01930503,156.02,156.01,38.92]
[1749062256389,16.40370503,156.02,156.01,38.92]
[1749062256697,16.11938189,156.02,156.01,38.92]
[1749062256895,0.3844,156.02,156.01,38.92]
[1749062264119,0.3844,156.02,156.01,54.65498189]
[1749062272801,0.3844,156.02,156.01,38.92]
[1749062275386,0.3844,156.02,156.0,25.73498189]
[1749062275592,0.3844,156.02,156.01,38.92]
[1749062276517,0.3844,156.02,156.01,54.65498189]
[1749062277009,0.3844,156.02,156.01,38.92]
[1749062277211,0.3844,156.02,156.01,54.65498189]
[1749062278412,0.3844,156.02,156.01,38.92]
[1749062278711,0.3844,156.02,156.01,54.65498189]
[1749062281218,0.3844,156.02,156.01,38.92]
[1749062281400,0.3844,156.02,156.0,10.0]
[1749062281722,0.3844,156.02,156.01,38.92]
[1749062282719,16.11938189,156.02,156.0,10.0]
[1749062282897,16.11938189,156.02,156.01,38.92]
[1749062284310,0.3844,156.02,156.01,38.92]
[1749062284923,16.11938189,156.02,156.0,10.0]
[1749062285211,16.11938189,156.02,156.01,38.92]
[1749062287640,16.40370503,156.02,156.01,38.92]
[1749062289012,16.40370503,156.02,156.0,10.0]
[1749062289209,16.40370503,156.02,156.01,38.92]
[1749062292023,0.28432314,156.01,156.0,10.0]
[1749062292330,16.1614666,156.01,156.0,10.0]
[1749062298422,16.5458666,156.01,156.0,10.0]
[1749062299351,16.40370503,156.01,156.0,10.0]
[1749062307323,10.7552465,156.01,156.0,10.0]
[1749062309732,0.3844,156.01,156.0,10.0]
[1749062316036,0.3844,156.01,156.0,20.08652336]
[1749062328344,0.3844,156.01,156.0,59.00652336]
[1749062330469,0.3844,156.01,156.0,77.65617222]
[1749062330769,0.3844,156.01,156.0,118.00226566]
[1749062332065,0.3844,156.01,156.0,77.65617222]
[1749062335648,0.3844,156.01,156.0,20.08652336]
[1749062335947,0.3844,156.01,156.0,58.98652336]
[1749062343183,0.3844,156.01,156.0,77.63617222]
[1749062348587,0.3844,156.01,156.0,58.98652336]
[1749062357295,0.3844,156.01,156.0,10.0]
[1749062357594,10.47092336,156.01,156.0,48.9]
[1749062357795,10.47092336,156.01,156.0,10.0]
[1749062358881,10.47092336,156.01,156.0,48.9]
[1749062359086,0.3844,156.01,156.0,48.9]
[1749062360580,16.14306856,156.01,156.0,48.9]
[1749062362896,0.3844,156.01,156.0,48.9]
[1749062369301,16.14306856,156.01,156.0,48.9]
[1749062375120,16.14306856,156.01,156.0,10.0]
[1749062375287,16.4273917,156.01,156.0,10.0]
[1749062377820,164.64274216,156.01,155.96,9.98]
[1749062378118,15.75866856,155.98,155.97,38.9]
[1749062378321,15.75866856,155.98,155.96,9.98]
[1749062378322,16.0429917,155.98,155.96,48.88]
[1749062378618,15.75866856,155.97,155.96,48.88]
[1749062378915,16.0429917,155.97,155.96,9.98]
[1749062381302,10.37850374,155.97,155.96,9.98]
[1749062385120,36.37850374,155.97,155.96,9.98]
[1749062391126,10.37850374,155.97,155.96,9.98]
[1749062395524,147.93102732,155.99,155.96,9.98]
[1749062395734,147.93102732,155.99,155.97,10.0941806]
[1749062395910,147.93102732,155.99,155.98,38.92]
[1749062397433,148.31542732,155.99,155.98,38.92]
[1749062398830,0.3844,155.99,155.98,38.92]
[1749062405244,0.3844,155.99,155.98,54.6792665]
[1749062412344,0.3844,155.99,155.98,64.6592665]
[1749062413044,0.3844,155.99,155.98,48.9]
[1749062413547,16.1436665,155.99,155.98,9.98]
[1749062413849,16.57015121,155.99,155.98,9.98]
[1749062417644,16.71231278,155.99,155.98,9.98]
[1749062418140,164.6433401,155.99,155.98,9.98]
[1749062419045,148.4996736,155.98,155.94,9.98]
[1749062419244,15.7592665,155.95,155.93,48.88]
[1749062419451,15.7592665,155.94,155.93,48.88]
[1749062420152,15.7592665,155.94,155.93,9.98]
[1749062420333,15.7592665,155.94,155.93,48.88]
[1749062420744,15.7592665,155.94,155.93,9.98]
[1749062420937,15.7592665,155.94,155.93,48.88]
[1749062424548,16.04358964,155.94,155.93,48.88]
[1749062425147,16.04358964,155.94,155.93,9.98]
[1749062425349,16.04358964,155.94,155.93,48.88]
[1749062426853,16.04358964,155.94,155.93,9.98]
[1749062427552,16.32791278,155.94,155.93,9.98]
[1749062429345,0.14216157,155.93,155.9,38.9]
[1749062429546,15.7592665,155.91,155.9,38.9]
[1749062431628,0.14216157,155.93,155.9,38.9]
[1749062431950,15.7592665,155.93,155.9,38.9]
[1749062432151,15.7592665,155.92,155.9,38.9]
[1749062433046,15.7592665,155.91,155.9,38.9]
[1749062436936,15.7592665,155.91,155.89,46.86]
[1749062437257,15.7592665,155.91,155.9,38.9]
[1749062438235,16.1436665,155.91,155.9,38.9]
[1749062441769,16.1436665,155.91,155.89,9.98]
[1749062441943,16.1436665,155.91,155.9,38.9]
[1749062443545,16.42798964,155.91,155.9,38.9]
[1749062445149,10.76829698,155.91,155.9,38.9]
[1749062445472,10.76829698,155.91,155.89,9.98]
[1749062445666,10.76829698,155.91,155.9,38.9]
[1749062446846,10.76829698,155.91,155.89,9.98]
[1749062447046,10.76829698,155.91,155.9,38.9]
[1749062457448,0.3844,155.91,155.9,38.9]
[1749062460663,10.48397384,155.91,155.9,38.9]
[1749062461879,0.28432314,155.9,155.89,48.88]
[1749062462374,10.38389698,155.9,155.89,9.98]
[1749062464276,10.38389698,155.9,155.89,48.88]
[1749062470359,0.14216157,155.9,155.89,9.98]
[1749062470556,10.66822012,155.9,155.89,9.98]
[1749062470989,158.59924744,155.9,155.89,9.98]
[1749062474087,148.21535046,155.9,155.89,9.98]
[1749062474265,147.93102732,155.9,155.89,48.88]
[1749062474677,158.3149243,155.9,155.89,48.88]
[1749062477271,163.99759854,155.9,155.89,48.88]
[1749062480376,164.38199854,155.9,155.89,48.88]
[1749062482469,164.38199854,155.9,155.85,15.78224808]
[1749062482470,0.28432314,155.89,155.84,9.98]
[1749062482786,0.28432314,155.89,155.85,54.68224808]
[1749062483674,16.16664808,155.9,155.86,15.78224808]
[1749062483890,0.3844,155.9,155.87,38.9]
[1749062484088,16.16664808,155.9,155.87,38.9]
[1749062484777,16.16664808,155.9,155.88,9.98]
[1749062485083,16.16664808,155.9,155.89,38.9]
[1749062485395,16.45097122,155.9,155.89,38.9]
[1749062485775,16.59313279,155.9,155.89,38.9]
[1749062491391,0.28432314,155.89,155.88,38.9]
[1749062491590,16.06657122,155.89,155.88,38.9]
[1749062492182,16.06657122,155.89,155.87,9.98]
[1749062492506,16.06657122,155.88,155.87,48.88]
[1749062493404,16.06657122,155.88,155.87,9.98]
[1749062493590,16.06657122,155.88,155.87,48.88]
[1749062494701,0.56864628,155.87,155.83,9.98]
[1749062494899,0.14216157,155.83,155.76,1.5283]
[1749062495093,15.78224808,155.79,155.77,48.88]
[1749062495603,15.78224808,155.8,155.77,48.88]
[1749062496984,15.78224808,155.8,155.78,38.9]
[1749062499202,15.78224808,155.81,155.78,38.9]
[1749062499586,0.56864628,155.84,155.78,38.9]
[1749062499587,0.14216157,155.84,155.78,38.9]
[1749062499889,15.78224808,155.83,155.79,15.78224808]
[1749062500290,15.78224808,155.83,155.8,38.9]
[1749062502004,15.78224808,155.83,155.81,38.9]
[1749062502401,16.16664808,155.83,155.81,38.9]
[1749062503903,0.3844,155.83,155.81,38.9]
[1749062504277,0.3844,155.83,155.82,9.98]
[1749062507709,16.16664808,155.83,155.82,9.98]
[1749062508408,0.3844,155.83,155.82,9.98]
[1749062509212,16.16664808,155.83,155.82,9.98]
[1749062510810,0.3844,155.83,155.82,9.98]
[1749062510989,0.3844,155.83,155.82,25.76224808]
[1749062511191,0.3844,155.83,155.82,46.02109694]
[1749062517403,0.3844,155.83,155.82,84.92109694]
[1749062528619,0.3844,155.83,155.82,83.31189694]
[1749062535017,0.3844,155.83,155.82,64.66224808]
[1749062535358,0.3844,155.83,155.82,9.98]
[1749062535529,0.3844,155.83,155.82,48.88]
[1749062535913,16.45097122,155.83,155.82,9.98]
[1749062536227,16.45097122,155.83,155.82,48.88]
[1749062537322,16.45097122,155.83,155.82,9.98]
[1749062537521,16.45097122,155.83,155.82,48.88]
[1749062538228,16.45097122,155.83,155.82,64.66224808]
[1749062538229,0.3844,155.83,155.82,64.66224808]
[1749062538949,0.3844,155.83,155.82,48.88]
[1749062545440,0.3844,155.83,155.82,64.66224808]
[1749062546048,0.3844,155.83,155.82,83.31189694]
[1749062549752,0.3844,155.83,155.82,64.66224808]
[1749062551547,0.3844,155.83,155.82,83.31189694]
[1749062552718,0.3844,155.83,155.82,119.37846816]
[1749062552920,32.2664,155.92,155.83,18.933972]
[1749062553143,26.0,155.9,155.88,15.78224808]
[1749062553451,26.0,155.9,155.89,48.88]
[1749062554921,26.0,155.91,155.89,48.88]
[1749062555427,41.78224808,155.91,155.89,48.88]
[1749062561359,15.78224808,155.91,155.89,48.88]
[1749062561563,22.04864808,155.92,155.89,48.88]
[1749062562675,15.78224808,155.91,155.89,48.88]
[1749062564351,15.78224808,155.93,155.89,64.66224808]
[1749062564671,6.36906157,155.96,155.89,64.66224808]
[1749062564672,6.2269,155.96,155.9,15.78224808]
[1749062564838,6.2269,155.96,155.91,54.66224808]
[1749062565033,15.78224808,155.96,155.92,15.78224808]
[1749062565253,15.78224808,155.96,155.93,38.88]
[1749062565446,15.78224808,155.95,155.94,9.96]
[1749062569331,0.28432314,155.97,155.94,9.96]
[1749062569532,15.78224808,155.95,155.94,9.96]
[1749062575063,16.06657122,155.95,155.94,48.84]
[1749062578944,16.20873279,155.95,155.94,9.96]
[1749062579148,22.48263279,155.95,155.94,9.96]
[1749062584468,163.7132754,155.96,155.94,48.84]
[1749062584677,15.78224808,155.95,155.94,48.84]
[1749062585992,189.7132754,155.96,155.94,48.84]
[1749062586294,163.7132754,155.96,155.94,48.84]
[1749062593201,15.78224808,155.95,155.94,48.84]
[1749062596301,147.93102732,155.96,155.94,48.84]
[1749062596610,163.7132754,155.96,155.94,48.84]
[1749062597299,147.93102732,155.96,155.94,48.84]
[1749062598197,15.78224808,155.97,155.94,48.84]
[1749062598496,0.28432314,155.99,155.94,64.62224808]
[1749062598497,15.78224808,155.98,155.94,64.62224808]
[1749062601897,147.93102732,156.0,155.94,64.62224808]
[1749062602089,15.78224808,155.99,155.95,15.78224808]
[1749062602405,163.7132754,156.0,155.96,38.86]
[1749062602601,147.93102732,156.0,155.96,38.86]
[1749062602792,163.7132754,156.0,155.96,38.86]
[1749062602995,15.78224808,155.99,155.96,38.86]
[1749062605015,163.7132754,156.0,155.96,54.64224808]
[1749062606797,15.78224808,155.98,155.96,38.86]
[1749062608409,15.78224808,155.99,155.96,38.86]
[1749062609113,15.78224808,155.99,155.97,38.86]
[1749062611315,15.78224808,155.98,155.94,9.96]
[1749062611495,15.78224808,155.95,155.94,9.96]
[1749062611697,16.06657122,155.95,155.94,9.96]
[1749062612003,16.20873279,155.95,155.94,48.82]
[1749062615393,16.06657122,155.95,155.94,48.82]
[1749062617303,16.20873279,155.95,155.94,48.82]
[1749062621426,16.06657122,155.95,155.94,48.82]
[1749062626841,42.20873279,155.95,155.94,48.82]
[1749062627346,42.20873279,155.95,155.94,9.96]
[1749062627347,42.35089436,155.95,155.94,9.96]
[1749062627548,26.0,155.92,155.9,9.96]
[1749062627717,16.06657122,155.91,155.9,9.96]
[1749062628039,16.06657122,155.91,155.9,48.82]
[1749062629035,15.78224808,155.91,155.9,48.82]
[1749062631913,27.70126157,155.95,155.9,48.82]
[1749062632113,0.28432314,155.94,155.9,48.82]
[1749062632447,15.78224808,155.95,155.9,64.60224808]
[1749062632619,15.78224808,155.95,155.91,15.78224808]
[1749062632825,148.1,155.96,155.9,48.82]
[1749062632826,163.88224808,155.96,155.92,54.64224808]
[1749062633446,15.78224808,155.95,155.92,38.86]
[1749062633816,163.88224808,155.96,155.92,38.86]
[1749062635519,163.88224808,155.96,155.92,54.64224808]
[1749062635840,148.1,155.96,155.93,15.78224808]
[1749062636140,163.88224808,155.96,155.94,38.86]
[1749062636328,163.88224808,155.96,155.95,9.96]
[1749062642322,163.88224808,155.96,155.95,48.82]
[1749062644545,148.1,155.96,155.95,48.82]
[1749062644741,163.88224808,155.96,155.95,48.82]
[1749062647974,148.1,155.96,155.95,48.82]
[1749062648257,163.88224808,155.96,155.95,48.82]
[1749062650029,148.1,155.96,155.95,48.82]
[1749062652255,164.16657122,155.96,155.95,48.82]
[1749062652438,164.30873279,155.96,155.95,9.96]
[1749062652640,164.45089436,155.96,155.95,48.82]
[1749062652960,0.14216157,155.95,155.88,36.88]
[1749062653150,15.78224808,155.91,155.89,9.96]
[1749062653355,15.78224808,155.91,155.9,38.88]
[1749062656161,148.38432314,155.96,155.9,54.66224808]
[1749062656357,15.78224808,155.94,155.9,54.66224808]
[1749062657139,15.78224808,155.94,155.9,38.88]
[1749062660464,15.78224808,155.94,155.9,54.66224808]
[1749062662982,15.78224808,155.94,155.91,9.96]
[1749062663163,15.78224808,155.94,155.92,38.88]
[1749062664643,148.38432314,155.96,155.91,9.96]
[1749062664644,15.78224808,155.93,155.91,9.96]
[1749062664848,15.78224808,155.92,155.91,9.96]
[1749062665068,15.78224808,155.92,155.91,48.84]
[1749062666371,15.78224808,155.93,155.91,48.84]
[1749062668167,15.78224808,155.94,155.91,48.84]
[1749062668968,15.78224808,155.93,155.91,48.84]
[1749062671366,0.28432314,155.95,155.91,48.84]
[1749062671566,15.78224808,155.94,155.91,48.84]
[1749062671763,15.78224808,155.93,155.91,48.84]
[1749062676765,15.78224808,155.93,155.92,38.86]
[1749062679179,10.09636409,155.93,155.92,38.86]
[1749062686769,10.09636409,155.93,155.92,48.82]
[1749062695920,10.5228488,155.93,155.92,9.96]
[1749062696114,10.66501037,155.93,155.92,9.96]
[1749062696296,51.05046673,155.93,155.92,9.96]
[1749062697706,0.56864628,155.92,155.91,38.86]
[1749062698005,51.05046673,155.92,155.9,38.86]
[1749062698196,36.23852566,155.91,155.9,38.86]
[1749062698795,26.0,155.91,155.9,38.86]
[1749062699507,10.09636409,155.94,155.9,38.86]
[1749062699696,10.09636409,155.94,155.9,48.95636409]
[1749062701009,10.09636409,155.95,155.9,48.95636409]
[1749062701222,15.77111489,155.95,155.9,54.63111489]
[1749062701908,163.87111489,155.97,155.93,15.77111489]
[1749062702205,163.87111489,155.97,155.94,48.82]
[1749062702410,148.1,155.97,155.94,48.82]
[1749062702588,148.1,155.97,155.94,64.59111489]
[1749062702983,15.77111489,155.98,155.95,15.77111489]
[1749062702984,148.1,155.98,155.95,15.77111489]
[1749062703189,148.1,155.98,155.96,38.86]
[1749062705099,163.87111489,155.98,155.96,38.86]
[1749062706591,15.77111489,155.97,155.96,38.86]
[1749062707027,148.1,155.98,155.96,38.86]
[1749062707192,163.87111489,155.98,155.96,38.86]
[1749062707618,15.77111489,155.97,155.96,38.86]
[1749062708044,15.77111489,155.97,155.89,27.6283]
[1749062708045,16.05543803,155.97,155.91,41.77111489]
[1749062708197,15.77111489,155.96,155.92,48.82]
[1749062708532,15.77111489,155.96,155.92,64.59111489]
[1749062709093,15.77111489,155.96,155.92,48.82]
[1749062709329,15.77111489,155.96,155.92,64.59111489]
[1749062709486,15.77111489,155.94,155.92,9.96]
[1749062709688,15.77111489,155.93,155.92,9.96]
[1749062709892,15.77111489,155.93,155.92,48.84]
[1749062710106,16.05543803,155.93,155.92,9.96]
[1749062710318,16.1975996,155.93,155.92,9.96]
[1749062710516,58.11087606,155.93,155.92,9.96]
[1749062711496,26.56864628,155.93,155.92,9.96]
[1749062711794,42.33976117,155.93,155.92,9.96]
[1749062712433,16.05543803,155.93,155.92,9.96]
[1749062714297,0.28432314,155.93,155.92,9.96]
[1749062714499,16.05543803,155.93,155.92,9.96]
[1749062715608,0.28432314,155.93,155.92,9.96]
[1749062715928,16.05543803,155.93,155.92,9.96]
[1749062716136,163.87111489,155.94,155.92,9.96]
[1749062716305,163.87111489,155.94,155.93,38.92]
[1749062717419,164.2975996,155.94,155.93,38.92]
[1749062717606,148.1,155.94,155.93,38.92]
[1749062717926,163.87111489,155.94,155.93,38.92]
[1749062718298,164.15543803,155.94,155.93,38.92]
[1749062720201,164.15543803,155.94,155.92,9.96]
[1749062720402,15.77111489,155.93,155.92,9.96]
[1749062720709,15.77111489,155.93,155.92,48.9]
[1749062722211,13.58925574,155.92,155.89,15.77111489]
[1749062722410,13.58925574,155.92,155.9,9.98]
[1749062723534,13.58925574,155.92,155.91,38.94]
[1749062725520,13.58925574,155.92,155.91,54.71111489]
[1749062725923,13.58925574,155.92,155.91,38.94]
[1749062735041,13.58925574,155.92,155.91,74.94286375]
[1749062735946,13.58925574,155.92,155.91,90.71397864]
[1749062737242,13.58925574,155.92,155.91,74.94286375]
[1749062738074,13.58925574,155.92,155.91,59.17174886]
[1749062738360,13.58925574,155.92,155.91,100.94286375]
[1749062740356,13.58925574,155.92,155.9,16.4151]
[1749062740357,13.58925574,155.92,155.9,9.98]
[1749062740769,13.58925574,155.92,155.91,38.98]
[1749062741678,13.58925574,155.92,155.9,9.98]
[1749062741894,29.36037063,155.92,155.9,9.98]
[1749062742081,29.36037063,155.92,155.91,39.0]
[1749062742256,29.36037063,155.92,155.9,9.98]
[1749062742590,16.05543803,155.91,155.9,9.98]
[1749062743082,16.05543803,155.91,155.9,48.98]
[1749062743748,15.77111489,155.91,155.9,48.98]
[1749062744163,15.77111489,155.91,155.9,39.0]
[1749062744888,15.77111489,155.91,155.89,36.88]
[1749062745185,13.58925574,155.92,155.9,39.0]
[1749062746284,15.77111489,155.91,155.9,39.0]
[1749062749859,16.05543803,155.91,155.9,39.0]
[1749062750256,0.28432314,155.9,155.88,9.98]
[1749062750492,15.77111489,155.89,155.88,9.98]
[1749062750858,15.77111489,155.89,155.88,48.96]
[1749062752279,15.77111489,155.89,155.88,9.98]
[1749062752490,15.77111489,155.89,155.88,48.96]
[1749062755462,15.77111489,155.89,155.88,48.94]
[1749062761090,16.05543803,155.89,155.88,9.98]
[1749062761297,16.05543803,155.89,155.88,48.92]
[1749062761776,16.05543803,155.89,155.88,9.98]
[1749062761978,16.05543803,155.89,155.88,48.92]
[1749062762386,16.1975996,155.89,155.88,9.98]
[1749062762591,16.1975996,155.89,155.88,48.92]
[1749062763787,16.1975996,155.89,155.88,9.98]
[1749062763987,16.1975996,155.89,155.88,48.92]
[1749062764494,42.1975996,155.89,155.88,48.92]
[1749062768996,42.05543803,155.89,155.88,48.92]
[1749062769392,26.28432314,155.89,155.88,48.92]
[1749062769601,42.05543803,155.89,155.88,48.92]
[1749062770687,42.05543803,155.89,155.88,38.94]
[1749062773221,26.28432314,155.89,155.88,38.94]
[1749062773423,42.05543803,155.89,155.88,38.94]
[1749062774893,26.28432314,155.89,155.88,38.94]
[1749062775112,42.05543803,155.89,155.88,38.94]
[1749062776822,16.05543803,155.89,155.88,38.94]
[1749062777511,0.14216157,155.87,155.86,10.04]
[1749062777701,16.33976117,155.87,155.86,10.04]
[1749062777887,16.33976117,155.87,155.86,38.92]
[1749062778611,16.33976117,155.87,155.82,10.0]
[1749062778817,15.77111489,155.83,155.82,10.0]
[1749062779127,16.1975996,155.83,155.82,10.0]
[1749062779305,16.1975996,155.83,155.82,48.94]
[1749062780189,16.33976117,155.83,155.82,10.0]
[1749062780405,0.28432314,155.81,155.78,38.94]
[1749062780588,15.77111489,155.79,155.76,10.0]
[1749062780797,148.1,155.8,155.77,38.94]
[1749062781199,148.1,155.8,155.76,10.0]
[1749062781404,148.1,155.8,155.77,38.94]
[1749062782003,15.77111489,155.78,155.77,38.94]
[1749062783599,15.77111489,155.78,155.76,10.0]
[1749062783797,15.77111489,155.77,155.76,10.0]
[1749062783999,15.77111489,155.77,155.76,48.98]
[1749062785214,15.77111489,155.77,155.76,10.0]
[1749062785513,16.05543803,155.77,155.76,48.98]
[1749062785922,0.14216157,155.8,155.76,48.98]
[1749062786229,15.77111489,155.81,155.76,64.75111489]
[1749062786796,15.77111489,155.8,155.76,64.75111489]
[1749062787307,15.77111489,155.8,155.76,48.98]
[1749062787495,15.77111489,155.8,155.76,64.75111489]
[1749062788412,163.87111489,155.8,155.76,64.75111489]
[1749062789935,15.77111489,155.79,155.76,48.98]
[1749062790219,148.1,155.8,155.76,64.75111489]
[1749062790220,163.87111489,155.8,155.76,64.75111489]
[1749062790714,148.1,155.8,155.77,15.77111489]
[1749062790917,148.1,155.8,155.76,50.5489]
[1749062790918,148.1,155.8,155.78,15.77111489]
[1749062791222,148.1,155.8,155.79,39.0]
[1749062792413,15.77111489,155.82,155.79,39.0]
[1749062792910,15.77111489,155.83,155.79,54.77111489]
[1749062793119,148.38432314,155.85,155.79,54.77111489]
[1749062793120,15.77111489,155.84,155.79,54.77111489]
[1749062794019,15.77111489,155.83,155.79,54.77111489]
[1749062796800,15.77111489,155.83,155.79,39.0]
[1749062797212,15.77111489,155.83,155.78,15.77111489]
[1749062797419,15.77111489,155.83,155.79,39.02]
[1749062799418,15.77111489,155.83,155.79,54.79111489]
[1749062799994,15.77111489,155.81,155.79,39.02]
[1749062800205,15.77111489,155.81,155.77,15.77111489]
[1749062800505,15.77111489,155.82,155.78,39.06]
[1749062802229,15.77111489,155.82,155.76,10.0]
[1749062802230,15.77111489,155.79,155.76,10.0]
[1749062802403,15.77111489,155.79,155.77,39.06]
[1749062803732,15.77111489,155.79,155.78,39.04]
[1749062804034,15.77111489,155.79,155.76,10.0]
[1749062804234,0.28432314,155.82,155.78,39.04]
[1749062804435,15.77111489,155.8,155.78,39.04]
[1749062805314,15.77111489,155.8,155.79,39.04]
[1749062805804,15.77111489,155.8,155.76,10.0]
[1749062806003,15.77111489,155.8,155.77,39.04]
[1749062810038,15.77111489,155.82,155.77,54.81111489]
[1749062810845,15.77111489,155.8,155.77,39.04]
[1749062815149,148.1,155.82,155.77,39.04]
[1749062815150,15.77111489,155.81,155.77,39.04]
[1749062815350,15.77111489,155.81,155.78,39.02]
[1749062818848,15.77111489,155.81,155.79,10.06]
[1749062819564,15.77111489,155.8,155.79,10.06]
[1749062822157,15.77111489,155.81,155.79,10.06]
[1749062824564,163.87111489,155.82,155.79,10.06]
[1749062824745,148.1,155.82,155.79,25.83111489]
[1749062827161,148.1,155.82,155.79,10.06]
[1749062827556,163.87111489,155.82,155.79,10.06]
[1749062828645,15.77111489,155.8,155.79,10.06]